[Event "Titled Tuesday Blitz May 24 Late 2022"]
[White "Vajda, Levente"]
[Black "Koutlas, Nikolaos"]
[WhiteFideId "1203975"]
[BlackFideId "25827138"]
[WhiteElo "2573"]
[BlackElo "1645"]
[Result "1-0"]
[Round "11"]
[TimeControl "180+1"]
[Date "2022.05.24"]
[WhiteClock "0:00:08"]
[BlackClock "0:00:02"]

1. e4 {[%clk 0:02:44]}  c5 {[%clk 0:02:58]} 2. c3 {[%clk 0:02:44]}  d5 {[%clk 0:02:58]} 3. exd5 {[%clk 0:02:43]}  Qxd5 {[%clk 0:02:59]} 4. d4 {[%clk 0:02:44]}  Nc6 {[%clk 0:02:59]} 5. Nf3 {[%clk 0:02:45]}  Bf5 {[%clk 0:02:59]} 6. Be3 {[%clk 0:02:44]}  Nf6 {[%clk 0:02:59]} 7. Na3 {[%clk 0:02:42]}  cxd4 {[%clk 0:02:59]} 8. Nxd4 {[%clk 0:02:32]}  Nxd4 {[%clk 0:02:49]} 9. Qxd4 {[%clk 0:02:32]}  Qxd4 {[%clk 0:02:46]} 10. Bxd4 {[%clk 0:02:33]}  a6 {[%clk 0:02:46]} 11. Nc4 {[%clk 0:02:29]}  e6 {[%clk 0:02:33]} 12. Be2 {[%clk 0:02:20]}  Be7 {[%clk 0:02:29]} 13. a4 {[%clk 0:02:18]}  O-O {[%clk 0:02:11]} 14. Bf3 {[%clk 0:02:13]}  Nd5 {[%clk 0:02:02]} 15. Nb6 {[%clk 0:02:04]}  Nxb6 {[%clk 0:01:32]} 16. Bxb6 {[%clk 0:02:05]}  Bd8 {[%clk 0:01:15]} 17. Bc5 {[%clk 0:01:42]}  e5 {[%clk 0:00:39]} 18. Bxf8 {[%clk 0:01:36]}  e4 {[%clk 0:00:38]} 19. Be2 {[%clk 0:01:08]}  Kxf8 {[%clk 0:00:31]} 20. O-O {[%clk 0:01:08]}  Bb6 {[%clk 0:00:20]} 21. Rfd1 {[%clk 0:01:08]}  Ke7 {[%clk 0:00:19]} 22. b4 {[%clk 0:01:07]}  e3 {[%clk 0:00:17]} 23. f3 {[%clk 0:01:07]}  Rc8 {[%clk 0:00:16]} 24. Rac1 {[%clk 0:01:02]}  a5 {[%clk 0:00:15]} 25. Kf1 {[%clk 0:01:02]}  Bd7 {[%clk 0:00:12]} 26. Bb5 {[%clk 0:00:55]}  Bxb5+ {[%clk 0:00:10]} 27. axb5 {[%clk 0:00:56]}  axb4 {[%clk 0:00:08]} 28. cxb4 {[%clk 0:00:56]}  Ra8 {[%clk 0:00:08]} 29. Rc2 {[%clk 0:00:53]}  Ra4 {[%clk 0:00:07]} 30. Rb1 {[%clk 0:00:49]}  Ra3 {[%clk 0:00:06]} 31. Ke2 {[%clk 0:00:49]}  f5 {[%clk 0:00:05]} 32. f4 {[%clk 0:00:48]}  h6 {[%clk 0:00:05]} 33. g3 {[%clk 0:00:48]}  g5 {[%clk 0:00:05]} 34. Rbb2 {[%clk 0:00:27]}  Ke6 {[%clk 0:00:04]} 35. Rc8 {[%clk 0:00:23]}  Ra1 {[%clk 0:00:04]} 36. Rb8 {[%clk 0:00:22]}  Rh1 {[%clk 0:00:03]} 37. Kd3 {[%clk 0:00:21]}  Rd1+ {[%clk 0:00:03]} 38. Kc4 {[%clk 0:00:19]}  Rd2 {[%clk 0:00:03]} 39. Rb1 {[%clk 0:00:16]}  e2 {[%clk 0:00:03]} 40. Re1 {[%clk 0:00:14]}  Bf2 {[%clk 0:00:03]} 41. Rxe2+ {[%clk 0:00:11]}  Rxe2 {[%clk 0:00:02]} 42. Re8+ {[%clk 0:00:11]}  Kd7 {[%clk 0:00:01]} 43. Rxe2 {[%clk 0:00:12]}  Bg1 {[%clk 0:00:01]} 44. fxg5 {[%clk 0:00:11]}  hxg5 {[%clk 0:00:02]} 45. h4 {[%clk 0:00:12]}  gxh4 {[%clk 0:00:02]} 46. gxh4 {[%clk 0:00:13]}  f4 {[%clk 0:00:02]} 47. Rg2 {[%clk 0:00:11]}  Be3 {[%clk 0:00:02]} 48. Rg7+ {[%clk 0:00:10]}  Ke6 {[%clk 0:00:01]} 49. Rxb7 {[%clk 0:00:10]}  f3 {[%clk 0:00:02]} 50. Kd3 {[%clk 0:00:10]}  Bf4 {[%clk 0:00:02]} 51. b6 {[%clk 0:00:10]}  Kf5 {[%clk 0:00:02]} 52. Rd7 {[%clk 0:00:09]}  Kg4 {[%clk 0:00:02]} 53. Rf7 {[%clk 0:00:09]}  Kg3 {[%clk 0:00:01]} 54. b7 {[%clk 0:00:09]}  Bb8 {[%clk 0:00:01]} 55. h5 {[%clk 0:00:09]}  Ba7 {[%clk 0:00:01]} 56. h6 {[%clk 0:00:08]}  Kg2 {[%clk 0:00:01]} 57. h7 {[%clk 0:00:08]}  f2 {[%clk 0:00:02]} 58. h8=Q {[%clk 0:00:08]} 1-0


[Site "https://www.chess.com"]

[Event "Titled Tuesday Blitz May 24 Late 2022"]
[White "Winkels, Marcel"]
[Black "Joubert, Dantelle"]
[WhiteFideId "1003887"]
[BlackFideId "14310813"]
[WhiteElo "1900"]
[BlackElo "1507"]
[Result "0-1"]
[Round "11"]
[TimeControl "180+1"]
[Date "2022.05.25"]
[WhiteClock "0:00:36"]
[BlackClock "0:00:11"]

1. e4 {[%clk 0:03:00]}  e5 {[%clk 0:02:57]} 2. Nf3 {[%clk 0:03:00]}  Nc6 {[%clk 0:02:57]} 3. Bc4 {[%clk 0:02:59]}  Bc5 {[%clk 0:02:54]} 4. b4 {[%clk 0:02:59]}  Bxb4 {[%clk 0:02:53]} 5. c3 {[%clk 0:02:59]}  Bd6 {[%clk 0:02:49]} 6. d4 {[%clk 0:02:58]}  Nf6 {[%clk 0:02:39]} 7. Bd5 {[%clk 0:02:55]}  Qe7 {[%clk 0:02:36]} 8. O-O {[%clk 0:02:53]}  O-O {[%clk 0:02:32]} 9. Bg5 {[%clk 0:02:44]}  h6 {[%clk 0:02:30]} 10. Bh4 {[%clk 0:02:42]}  g5 {[%clk 0:02:00]} 11. Bg3 {[%clk 0:02:41]}  exd4 {[%clk 0:01:46]} 12. Nxd4 {[%clk 0:02:40]}  Nxd4 {[%clk 0:01:43]} 13. cxd4 {[%clk 0:02:18]}  Nxd5 {[%clk 0:01:39]} 14. exd5 {[%clk 0:02:16]}  Bxg3 {[%clk 0:01:23]} 15. fxg3 {[%clk 0:02:15]}  d6 {[%clk 0:01:21]} 16. Nd2 {[%clk 0:02:13]}  Qe3+ {[%clk 0:01:14]} 17. Kh1 {[%clk 0:02:12]}  Qxd4 {[%clk 0:01:14]} 18. Nf3 {[%clk 0:02:07]}  Qxd1 {[%clk 0:01:13]} 19. Rfxd1 {[%clk 0:02:06]}  Bg4 {[%clk 0:01:11]} 20. Rac1 {[%clk 0:02:05]}  Rac8 {[%clk 0:01:08]} 21. Rd4 {[%clk 0:02:04]}  Bxf3 {[%clk 0:01:04]} 22. gxf3 {[%clk 0:02:04]}  Rfe8 {[%clk 0:01:03]} 23. Rc2 {[%clk 0:01:59]}  f5 {[%clk 0:00:46]} 24. Rdc4 {[%clk 0:01:58]}  Re7 {[%clk 0:00:46]} 25. a4 {[%clk 0:01:56]}  Kf7 {[%clk 0:00:35]} 26. a5 {[%clk 0:01:54]}  Ke8 {[%clk 0:00:33]} 27. Rb4 {[%clk 0:01:52]}  Rb8 {[%clk 0:00:28]} 28. a6 {[%clk 0:01:48]}  b6 {[%clk 0:00:28]} 29. Rc6 {[%clk 0:01:47]}  Kd7 {[%clk 0:00:25]} 30. Rbc4 {[%clk 0:01:46]}  Rc8 {[%clk 0:00:25]} 31. Kg2 {[%clk 0:01:43]}  Re5 {[%clk 0:00:25]} 32. Rd4 {[%clk 0:01:42]}  Rce8 {[%clk 0:00:24]} 33. Rdc4 {[%clk 0:01:37]}  Rc8 {[%clk 0:00:24]} 34. Rc2 {[%clk 0:01:36]}  Rxd5 {[%clk 0:00:22]} 35. R6c4 {[%clk 0:01:35]}  Re5 {[%clk 0:00:22]} 36. Ra2 {[%clk 0:01:32]}  c5 {[%clk 0:00:21]} 37. Kf2 {[%clk 0:01:31]}  Kc6 {[%clk 0:00:21]} 38. Rcc2 {[%clk 0:01:29]}  d5 {[%clk 0:00:20]} 39. f4 {[%clk 0:01:22]}  gxf4 {[%clk 0:00:19]} 40. gxf4 {[%clk 0:01:23]}  Re4 {[%clk 0:00:19]} 41. Kf3 {[%clk 0:01:23]}  Rg8 {[%clk 0:00:19]} 42. Rg2 {[%clk 0:01:21]}  Rxg2 {[%clk 0:00:18]} 43. Rxg2 {[%clk 0:01:20]}  Kb5 {[%clk 0:00:17]} 44. Rg6 {[%clk 0:01:19]}  Kxa6 {[%clk 0:00:16]} 45. Rf6 {[%clk 0:01:19]}  d4 {[%clk 0:00:14]} 46. Rxf5 {[%clk 0:01:19]}  Re8 {[%clk 0:00:14]} 47. Rf6 {[%clk 0:01:18]}  d3 {[%clk 0:00:12]} 48. Rxh6 {[%clk 0:01:16]}  Rd8 {[%clk 0:00:12]} 49. Ke4 {[%clk 0:00:37]}  d2 {[%clk 0:00:11]} 50. Rd6 {[%clk 0:00:37]}  Rxd6 {[%clk 0:00:11]} 51. Ke5 {[%clk 0:00:37]}  d1=Q {[%clk 0:00:10]} 52. f5 {[%clk 0:00:38]}  Qd5+ {[%clk 0:00:10]} 53. Kf4 {[%clk 0:00:37]}  Rf6 {[%clk 0:00:10]} 54. Kg4 {[%clk 0:00:37]}  Qxf5+ {[%clk 0:00:11]} 55. Kg3 {[%clk 0:00:37]}  Rg6+ {[%clk 0:00:11]} 56. Kh4 {[%clk 0:00:36]}  Qg5+ {[%clk 0:00:11]} 0-1


[Site "https://www.chess.com"]

[Event "Titled Tuesday Blitz May 24 Late 2022"]
[White "Zhurbinsky, David"]
[Black "Yang, Kaiqi"]
[WhiteFideId "2072904"]
[BlackFideId "8604398"]
[WhiteElo "2571"]
[BlackElo "2373"]
[Result "0-1"]
[Round "11"]
[TimeControl "180+1"]
[Date "2022.05.24"]
[WhiteClock "0:00:04"]
[BlackClock "0:00:22"]

1. e4 {[%clk 0:03:00]}  e6 {[%clk 0:02:59]} 2. d4 {[%clk 0:03:01]}  d5 {[%clk 0:03:00]} 3. Nc3 {[%clk 0:03:01]}  Bb4 {[%clk 0:02:59]} 4. e5 {[%clk 0:03:01]}  c5 {[%clk 0:02:59]} 5. a3 {[%clk 0:03:02]}  Bxc3+ {[%clk 0:02:59]} 6. bxc3 {[%clk 0:03:03]}  Qc7 {[%clk 0:02:59]} 7. Qd2 {[%clk 0:03:00]}  Ne7 {[%clk 0:02:55]} 8. f4 {[%clk 0:02:58]}  b6 {[%clk 0:02:50]} 9. Nf3 {[%clk 0:02:56]}  Ba6 {[%clk 0:02:48]} 10. Bxa6 {[%clk 0:02:54]}  Nxa6 {[%clk 0:02:49]} 11. O-O {[%clk 0:02:53]}  Rc8 {[%clk 0:02:36]} 12. Qd3 {[%clk 0:02:39]}  Nb8 {[%clk 0:02:35]} 13. Rf2 {[%clk 0:02:17]}  O-O {[%clk 0:02:30]} 14. Ng5 {[%clk 0:02:11]}  g6 {[%clk 0:02:30]} 15. Qh3 {[%clk 0:02:07]}  h5 {[%clk 0:02:29]} 16. g4 {[%clk 0:01:57]}  Kg7 {[%clk 0:02:29]} 17. gxh5 {[%clk 0:01:43]}  Rh8 {[%clk 0:02:23]} 18. Rg2 {[%clk 0:01:37]}  Qd7 {[%clk 0:02:05]} 19. Bd2 {[%clk 0:01:05]}  Rcg8 {[%clk 0:01:58]} 20. Kh1 {[%clk 0:00:52]}  Rxh5 {[%clk 0:01:37]} 21. Qg4 {[%clk 0:00:18]}  Rgh8 {[%clk 0:01:34]} 22. Rag1 {[%clk 0:00:14]}  Kf8 {[%clk 0:01:27]} 23. dxc5 {[%clk 0:00:11]}  bxc5 {[%clk 0:01:26]} 24. Be3 {[%clk 0:00:12]}  Qc6 {[%clk 0:01:22]} 25. Bf2 {[%clk 0:00:10]}  Nd7 {[%clk 0:01:16]} 26. Rb1 {[%clk 0:00:09]}  Nf5 {[%clk 0:01:09]} 27. Nxf7 {[%clk 0:00:06]}  Kxf7 {[%clk 0:00:56]} 28. Qxg6+ {[%clk 0:00:06]}  Ke7 {[%clk 0:00:56]} 29. Bxc5+ {[%clk 0:00:03]}  Qxc5 {[%clk 0:00:37]} 30. Rb7 {[%clk 0:00:03]}  Kd8 {[%clk 0:00:31]} 31. Qf7 {[%clk 0:00:04]}  Rxh2+ {[%clk 0:00:22]} 32. Rxh2 {[%clk 0:00:04]}  Rxh2+ {[%clk 0:00:22]} 33. Kxh2 {[%clk 0:00:05]}  Qf2+ {[%clk 0:00:22]} 34. Kh1 {[%clk 0:00:04]}  Ng3# {[%clk 0:00:22]} 0-1